Cogmind - Beta 16 @@@ ROGUE MODE // 2026.01.21 @ 18:05:09 Player: Zedx Result: Destroyed by S-10 Pest with Light Assault Rifle Performance ------------- Evolutions (0) 0 Regions Visited (1) 200 Robots Destroyed (9) 45 Value Destroyed (141) 141 Prototype IDs (2) 40 Alien Tech Used (0) 0 Bonus (0) 0 TOTAL SCORE: 426 Bonus ------- None Cogmind --------- Core Integrity 0/250 Matter 259/300 Energy 125/125 System Corruption 18% Temperature Cool (8) Movement Core (200) Ox3 Location -10/Materials Parts ------- > --- POWER (1) -------- Light Ion Engine > --- PROPULSION (2) --- (None) > --- UTILITY (2) ------ Small Storage Unit Structural Scanner > --- WEAPON (2) ------- Light Assault Rifle Light Assault Rifle > --- INVENTORY (8) ---- Light Nuclear Core Aluminum Leg Aluminum Leg Cooling System Particle Gun Mining Laser Peak State ------------ > --- POWER ------------ Ion Engine > --- PROPULSION ------- Aluminum Leg Aluminum Leg > --- UTILITY ---------- Small Storage Unit Structural Scanner > --- WEAPON ----------- Heavy EM Pulse Gun Medium Laser > --- INVENTORY -------- Light Ion Engine Light Nuclear Core Aluminum Leg Aluminum Leg Medium Matter Pod EM Pulse Gun Particle Gun Mining Laser [Rating: 9] Favorites ----------- Power Ion Engine Engine Ion Engine Propulsion Aluminum Leg Leg Aluminum Leg Utility Small Storage Unit Device Structural Scanner Storage Small Storage Unit Weapon Medium Laser Energy Gun Medium Laser Ballistic Gun Light Assault Rifle Special Weapon Mining Laser Build | -11 -10 ------- Run | Yrd Mat Slots Evolved . | . . Power . | . . Propulsion . | . . Utility . | . . Weapon . | . . Parts Attached 12 | 6 6 Power 2 | 1 1 Engine 2 | 1 1 Core . | . . Reactor . | . . Propulsion 2 | 2 . Treads . | . . Leg 2 | 2 . Wheel . | . . Hover . | . . Flight . | . . Utility 2 | 1 1 Device 1 | . 1 Storage 1 | 1 . Processor . | . . Hackware . | . . Protection . | . . Artifact . | . . Weapon 6 | 2 4 Energy Gun 3 | 2 1 Energy Cannon . | . . Ballistic Gun 2 | . 2 Ballistic Cannon . | . . Launcher . | . . Special Weapon 1 | . 1 Impact Weapon . | . . Slashing Weapon . | . . Piercing Weapon . | . . Special Melee Weapon . | . . Unidentified Prototypes . | . . Parts Lost 4 | . 4 Power 1 | . 1 Propulsion 2 | . 2 Utility . | . . Weapon 1 | . 1 Highest Loss Streak 4 | . 4 To Critical Strikes . | . . Average Backups 4 | . 5 Power . | . 1 Propulsion 1 | . 1 Utility . | . . Weapon 1 | . 2 Tool/Special . | . . Unused Backups 8 | 1 7 Power 1 | . 1 Propulsion 2 | . 2 Utility 2 | . 2 Weapon 3 | 1 2 Tool/Special . | . . Average Slot Usage (%) 94 | . 94 Engine 13 | . 13 Leg 27 | . 27 Device 12 | . 12 Storage 14 | . 14 Energy Gun 20 | . 20 Ballistic Gun 3 | . 3 Peak Build Rating 9 | 6 9 Average Rating 6 | 4 7 On Entrance 3 | . 6 Avg Prop Armor Cover (%) . | . . Naked Turns . | . . Heaviest Build 16 | 12 16 Greatest Support 20 | 20 20 Greatest Overweight (x) 2 | . 2 Average Overweight (x) . | . . Largest Inventory Capacity 8 | 8 8 Average Capacity 7 | 6 8 Most Carried 8 | 2 8 Average Carried 4 | . 5 Final Capacity 8 | 8 8 Final Carried 6 | 1 6 Class Distribution -------------------- 100% | Mutant Dominant Class ---------------- Mutant | -10/Materials Resources | -11 -10 ----------- Run | Yrd Mat Matter Collected 387 | 260 127 Remotely . | . . Salvage Created 299 | 130 169 Parts 15 | 5 10 Haulers Intercepted . | . . Recyclers Shooed . | . . Parts Field Recycled . | . . Retrieved Matter . | . . Parts Self-Destructed . | . . Prevented . | . . Parts Restored . | . . Kills | -11 -10 ------- Run | Yrd Mat Combat Hostiles Destroyed 6 | . 6 Guns 5 | . 5 Classes Destroyed 4 | 2 2 Tunneler 2 | 2 . Recycler 1 | 1 . Swarmer 4 | . 4 Grunt 2 | . 2 Best Kill Streak 3 | 2 3 Combat Bots Only 3 | . 3 Max Kills in Single Turn 1 | 1 1 Gunslinging . | . . Exploded . | . . Melee . | . . Uniques/NPCs Destroyed . | . . Combat | -11 -10 -------- Run | Yrd Mat Hostile Shots Fired 44 | . 44 Missed 6 | . 6 Hits 38 | . 38 Projectile 38 | . 38 Critical Strikes 1 | . 1 Damage Taken 791 | . 791 Core 251 | . 251 Absorbed by Shields . | . . Core Remaining (%) 100 | 100 . Volleys Fired 42 | 8 34 Largest 2 | 2 2 Hottest 100 | 90 100 Shots Fired 62 | 16 46 Gun 53 | 16 37 Cannon . | . . Launcher . | . . Special 9 | . 9 Kinetic 11 | . 11 Thermal 35 | 8 27 Explosive . | . . Electromagnetic 16 | 8 8 Robot Hit Streak 8 | 5 8 Robot Miss Streak 3 | 2 3 Penetration Max . | . . Secondary Targets . | . . Shots Hit Robots 30 | 10 20 Core Hits 11 | 3 8 Critical Kills . | . . Critical Parts Destroyed . | . . Critical Strikes 5 | 1 4 Burn 4 | 1 3 Corrupt 1 | . 1 Melee Attacks . | . . Impact . | . . Slashing . | . . Piercing . | . . Sneak Attacks . | . . Combat Hostiles . | . . Follow-up Attacks . | . . Damage Inflicted 401 | 147 254 Guns 401 | 147 254 Cannons . | . . Explosions . | . . Melee . | . . Ramming . | . . Kinetic 34 | . 34 Thermal 214 | 64 150 Explosive . | . . Electromagnetic 153 | 83 70 Impact . | . . Slashing . | . . Piercing . | . . Highest Corruption 18 | . 18 Average Corruption 17 | . 17 Corruption Purged . | . . Corruption Blocked . | . . Effects 2 | . 2 Heat Flow Errors 1 | . 1 Weapon Failures 1 | . 1 Overload Shots . | . . Overflow Damage . | . . Projectiles . | . . Explosions . | . . Melee . | . . Knockbacks . | . . Impact . | . . Kinetic . | . . Secondary . | . . Self-Inflicted Damage . | . . Shots . | . . Rammed . | . . Targets Rammed 1 | . 1 Kicked 1 | . 1 Crushed . | . . Highest Temperature 163 | 150 163 Average Temperature 43 | 67 36 Received Heat Transfer 48 | . 48 Siege Activations . | . . Martial Activations . | . . Shielding Activations . | . . Robots Disrupted . | . . Combat Hostiles . | . . Robots Corrupted . | . . Combat Hostiles . | . . Parts Fried 1 | 1 . Impact Corruptions . | . . Robots Melted 1 | . 1 Combat Hostiles 1 | . 1 Parts Melted 2 | . 2 Heat Transferred 925 | 259 666 Parts Sabotaged . | . . Parts Stolen . | . . Parts Stripped . | . . Power Chain Reactions . | . . Alert | -11 -10 ------- Run | Yrd Mat Maximum Alert Level . | . . Low Security (%) 100 | 100 100 Level 1 . | . . Level 2 . | . . Level 3 . | . . Level 4 . | . . Level 5 . | . . High Security . | . . Max Security . | . . Peak Influence 105 | 10 105 Initial . | . . Average 25 | 1 30 Influence Increases 207 | 15 192 Destroy 0b10 Robot/C 120 | . 120 Destroy 0b10 Robot/NC 15 | 15 . Destroy Leader 20 | . 20 Successful Hack 5 | . 5 Destroy Structure 2 | . 2 Lose Combat Pursuer 45 | . 45 Influence Decreases 187 | 15 172 Time Decay 172 | 15 157 Lost Part 15 | . 15 Squads Dispatched 1 | . 1 Investigation . | . . Extermination . | . . Reinforcement 1 | . 1 Assault . | . . Garrison . | . . Intercept . | . . Searches Triggered . | . . Construction Impeded . | . . Haulers Reinforced . | . . Active Scanning Responses . | . . Cargo Convoy Interrupts . | . . Stealth | -11 -10 --------- Run | Yrd Mat Distress Signals . | . . Communications Jammed . | . . Distress Signals . | . . Times Spotted 13 | . 13 Peak Tracking Total 6 | . 6 Tactical Retreats 2 | . 2 Traps | -11 -10 ------- Run | Yrd Mat Traps Triggered 1 | . 1 Indirectly . | . . Trap Hack Attempts . | . . Triggered . | . . Disarmed . | . . Reprogrammed . | . . Reused . | . . Traps Extracted . | . . Installed . | . . Triggered . | . . Machines | -11 -10 ---------- Run | Yrd Mat Machines Disabled . | . . Max in Single Turn . | . . Machines Repaired . | . . Machines Dismantled . | . . Machines Sabotaged . | . . Overloaded Fab Kills . | . . Hacking | -11 -10 --------- Run | Yrd Mat Machines Accessed 3 | . 3 Terminals 3 | . 3 Fabricators . | . . Repair Stations . | . . Recycling Units . | . . Scanalyzers . | . . Garrison Access . | . . Total Hacks 7 | . 7 Successful 3 | . 3 Failed 4 | . 4 Catastrophic 2 | . 2 Database Lockouts . | . . Manual 5 | . 5 Terminals 7 | . 7 Fabricators . | . . Repair Stations . | . . Recycling Units . | . . Scanalyzers . | . . Garrison Access . | . . Terminal Hacks 3 | . 3 Part Schematic 1 | . 1 Prototype ID Bank 1 | . 1 Zone Layout 1 | . 1 Fabricator Hacks . | . . Repair Station Hacks . | . . Recycling Unit Hacks . | . . Scanalyzer . | . . Garrison Access Hacks . | . . Unauthorized Hacks . | . . Terminals . | . . Fabricators . | . . Repair Stations . | . . Recycling Units . | . . Scanalyzers . | . . Garrison Access . | . . Data Cores Recovered . | . . Used . | . . Hacking Detections 3 | . 3 Full Trace Events . | . . Feedback Events . | . . Feedback Blocked . | . . Robot Schematics Acquired . | . . Robots Built . | . . Authchips . | . . Time . | . . Total Robot Build Rating . | . . Part Schematics Acquired 1 | . 1 Parts Built . | . . Authchips . | . . Time . | . . Total Part Build Rating . | . . Part Studies Acquired . | . . Parts Repaired . | . . Time . | . . Parts Recycled . | . . Recycled Matter . | . . Retrieved Matter . | . . Retrieved Components . | . . Parts Scanalyzed . | . . Part Schematics Acquired . | . . Parts Damaged . | . . Bothacking | -11 -10 ------------ Run | Yrd Mat Used RIF Installer . | . . Robots Hacked . | . . Non-combat . | . . Combat . | . . Robot Hacks Applied . | . . Relay Couplers Released . | . . Fabnet Peak Effective % . | . . Robots Rewired . | . . Allies Hacked . | . . Hacks Repelled . | . . Allies | -11 -10 -------- Run | Yrd Mat Total Allies . | . . Largest Group . | . . Highest-Rated Group . | . . Highest-Rated Ally . | . . Total Orders . | . . Ally Attacks . | . . Total Damage . | . . Kills . | . . Allies Corrupted . | . . Allies Melted . | . . Intel | -11 -10 ------- Run | Yrd Mat Active Infowar (turns) 498 | . 498 Structural 498 | . 498 Robot Analysis Total . | . . Derelict Logs Recovered . | . . Drone Launches . | . . Drone Recoveries . | . . Exploration | -11 -10 ------------- Run | Yrd Mat Turns Passed 683 | 126 557 Spaces Moved 441 | 99 342 Core 43 | 42 1 Treads . | . . Legs 398 | 57 341 Wheels . | . . Hover . | . . Flight . | . . Fastest Speed 50 | 50 120 Average Speed 113 | 90 120 Slowest Speed 150 | 120 150 Overloaded Moves . | . . Propulsion Burnouts . | . . Robots Hopped . | . . Potential Cave-ins 5 | . 5 Cave-ins Triggered 3 | . 3 Exploration Rate (%) 21 | 4 38 Regions Visited 1 Branch Regions . Pre-discovered Areas . | . . Known Exits Taken . | . . Unknown Exits Taken 1 | 1 . Scrap Searched . | . . Spaces Dug 9 | . 9 Terrain Destroyed 9 | . 9 Melee . | . . Projectile 9 | . 9 AOE . | . . Terrain Rammed . | . . Walls Destroyed . | . . Machines Disabled . | . . Actions | -11 -10 --------- Run | Yrd Mat Total 546 | 118 428 Wait 28 | 1 27 Move 440 | 98 342 Hop . | . . Pick Up 16 | 4 12 Fast Attach 5 | 4 1 Attach 6 | 2 4 Detach . | . . Swap 3 | . 3 Drop 5 | 1 4 Fire 42 | 8 34 Melee . | . . Ram . | . . Kick 1 | . 1 Crush . | . . Escape Stasis . | . . Rewire . | . . Trap . | . . Miscellaneous . | . . Route ------- -11/Scrapyard -10/Materials (discovered 3 exits: [*Mat x2] / [*Min]) History --------- Turn | Location | Event 3 | -11/Scrapyard | Discovered new exit (range 15) 127 | -11/Scrapyard | Entered Materials 194 | -10/Materials | Discovered new exit (range 12) 256 | -10/Materials | Discovered new exit (range 6) 302 | -10/Materials | Build established: Mutant 527 | -10/Materials | Discovered new exit (range 14) 660 | -10/Materials | Crushed by falling debris 660 | -10/Materials | System corruption reached 10% 662 | -10/Materials | Crushed by falling debris 669 | -10/Materials | Core integrity fell below 50% 683 | -10/Materials | Crushed by falling debris 683 | -10/Materials | Core integrity fell below 20% 684 | -10/Materials | Destroyed by S-10 Pest with Light Assault Rifle Last Messages --------------- 00660_ Hvy. EM Pulse Gun destroyed. 00660_ System corrupted by crushing effect (+3). 00660_ Ion Engine destroyed. 00660_ System corrupted by crushing effect (+5). 00660_ Aluminum Leg destroyed. 00660_ System corrupted by crushing effect (+5). 00662_ The unstable cave ceiling collapses. 00662_ Crushed by falling debris. 00662_ Aluminum Leg destroyed. 00662_ System corrupted by crushing effect (+5). 00667_ System corrupted: Heat flow error (+159). 00672_ ALERT: Hostiles spotted, dispatching reinforcements to Terminal M001. 00672_ S-10 Pest destroyed. 00674_ The unstable cave ceiling collapses. 00682_ System corrupted: Lgt. Assault Rifle jammed. 00683_ The unstable cave ceiling collapses. 00683_ Crushed by falling debris. 00683_ U-05 Engineer builds a Wall. Map ----- +----------------------------------------------------+ | | | | | | | | | | | | | | | | | | | | | | | | | | | | | | | ???????????????????????????#############?????????? | | ???????????????????????????## ##?????????? | | ???????????????????????????##"" ##?????????? | | ???????????????????????????##"Y """ ##????????## | | ???????????????????????????##"" """ ############ | | ?????????????????????######## """ ############ | | ?????????????????????######## # | | ?????????????????????## ##### # < ######## | | ???????????????##"?"### ## # # ######## | | ???????????????##"T"###############+### ##?##### | | ???????????? T @ u g ##?##### | | ???????????? o % ##?## | | ?????????? s ##?##"" | | ??????????? w s####+###############?##"T | | ??????????? """ """ ## ############?##"" | | ?????????????"" """ ??????????????????????## | | ?????????????????""" ??????????????????????## | | ????????????????? ???????????????????????##### | | ??????????????? ???????????????????????#### | | ???????????????## ?????????????????########### | | ??????????????? # ?????????????????# # | | ??????????????? + ??????????????????# """ # | | ??????????????? # ??????????????????# """"" # | | ??????????????? # ???????????????????# """"" + | | ??????????????????????????????????????# """"" # | | ??????????????????????????????????????# """ # | | ??????????????????????????????????????# # | | ??????????????????????????????????????# # | | ????????????????????????????????????############# | | ?????????????????????????????????????????????????? | | ?????????????????????????????????????????????????? | | ?????????????????????????????????????????????????? | | ?????????????????????????????????????????????????? | | ?????????????????????????????????????????????????? | | ?????????????????????????????????????????????????? | +----------------------------------------------------+ Best States ------------- Heat Dissipation 25 Energy Generation 10 Energy Capacity 250 Matter Stores 300 Matter Capacity 300 Sight Range 16 Terrain Scan Density 10 Evasion (%) 55 Item Schematics ----------------- Lrg. Storage Unit | -10/Materials | Hacked Robot Schematics ------------------ None Fabricated ------------ Nothing Repaired ---------- Nothing Studied --------- None Alien Tech Used ----------------- None Achievements -------------- None Challenges ------------ None Game ------ Seed TripodMissileCarapace Manual? 0 Play Time 00:11:25 Cumulative 51.7 hours Start 2026.01.21 @ 17:58:51 End 2026.01.21 @ 18:05:09 Sessions 1 Manual Loads 0 Difficulty Rogue Special Mode None Game No. 59 Rogue 59 Adventurer 0 Explorer 0 Win Type - Total 0 Types 0/0/0/0/0/0/0/0/0/0 Lore% 18 Gallery% 32 Achievement% 19 Wizard Run 0 Options --------- Layout 1 ASCII 0 Keyboard 1 Movement Numpad Keybinds 0 Fullscreen 2 Font 24/Smallcaps Map View 50x35 Zoom Use 0% Tactical HUD 1 Map Filters NONE Filters NONE Steam 1 RUN: afb5a302-e49b-4032-ab19-99f6bf84198e